bitfinex-derivatives/quotes_ETHF0:USTF0_20250314
["timestamp","ask_amount","ask_price","bid_price","bid_amount"]
[1741951178955,4.5587,1902.8,1902.5,3.83453]
[1741951179161,4.5802,1902.8,1902.7,1.05122]
[1741951179558,1.3724,1902.8,1902.7,1.05122]
[1741951185160,1.35878001,1903.0,1902.9,1.05111]
[1741951185367,4.56658001,1903.0,1902.9,1.05111]
[1741951186359,5.61763001,1903.0,1902.8,0.6973]
[1741951186560,5.61763001,1903.0,1902.6,2.62816]
[1741951186764,4.56658001,1903.0,1902.6,0.6738]
[1741951186960,3.2078,1902.8,1902.7,1.05122]
[1741951187658,1.35878001,1903.0,1902.7,1.3361]
[1741951187864,5.5238,1903.3,1903.2,1.05094]
[1741951188055,5.5238,1903.3,1902.7,9.4302]
[1741951188253,3.2078,1903.1,1902.9,1.05108]
[1741951188458,1.05106,1903.0,1902.8,1.05111]
[1741951188658,4.95441,1902.9,1902.7,4.8863]
[1741951189063,0.6955,1902.9,1902.8,1.05116]
[1741951189263,0.6955,1902.9,1902.8,2.38726]
[1741951189454,2.0889,1902.9,1902.8,2.38726]
[1741951192561,2.0889,1902.9,1902.7,4.8863]
[1741951192763,1.4057,1902.8,1902.7,5.9375]
[1741951193166,5.66466,1902.8,1902.7,4.8863]
[1741951193567,5.66466,1902.8,1902.6,1.05123]
[1741951193870,1.3188,1902.7,1902.6,1.05123]
[1741951194269,2.0082,1902.7,1902.6,1.05123]
[1741951194471,3.05944,1902.7,1902.6,1.05127]
[1741951194673,2.0082,1902.7,1902.6,1.05127]
[1741951196268,1.3188,1902.7,1902.6,1.05127]
[1741951196765,3.2078,1902.8,1902.7,1.05122]
[1741951197569,3.2078,1902.8,1902.7,1.75282]
[1741951198078,4.653,1902.8,1902.7,1.75282]
[1741951198276,1.4452,1902.8,1902.7,1.75282]
[1741951202074,0.00788001,1903.0,1902.9,1.05111]
[1741951202278,4.26674001,1903.0,1902.9,1.05111]
[1741951202482,3.21568001,1903.0,1902.9,1.05111]
[1741951203669,0.00788001,1903.0,1902.9,1.05111]
[1741951205775,0.00788001,1903.0,1902.9,1.76901269]
[1741951208488,0.00788001,1903.0,1902.9,1.05111]
[1741951210891,0.00788001,1903.0,1902.9,1.46502233]
[1741951211092,0.00788001,1903.0,1902.9,1.05111]
[1741951211294,0.00788001,1903.0,1902.9,1.72391]
[1741951211690,0.00788001,1903.0,1902.9,3.05731]
[1741951215194,0.81455421,1903.7,1903.4,1.05083]
[1741951215399,7.152,1904.4,1904.1,1.05044]
[1741951215400,3.2078,1904.2,1904.1,1.05044]
[1741951215704,7.01105421,1904.4,1903.6,1.3825]
[1741951215905,3.2078,1904.0,1903.7,1.05064]
[1741951216099,0.6727,1903.9,1903.6,2.4332]
[1741951216303,0.68058001,1903.9,1903.7,1.3825]
[1741951216506,0.68058001,1903.9,1903.7,2.43313]
[1741951216805,0.68058001,1903.9,1903.8,1.05061]
[1741951217103,0.68058001,1903.9,1903.8,2.43311]
[1741951218507,0.00788001,1903.9,1903.8,2.43311]
[1741951220202,2.09848001,1903.9,1903.8,2.43311]
[1741951220410,2.09848001,1903.9,1903.8,1.05061]
[1741951220715,3.14904001,1903.9,1903.7,2.44235]
[1741951220898,1.4143,1903.8,1903.7,2.44235]
[1741951221101,4.6221,1903.8,1903.6,0.00788001]
[1741951221404,4.6221,1903.8,1903.7,1.05066]
[1741951222505,3.2078,1903.8,1903.7,1.77116]
[1741951222706,4.6221,1903.8,1903.7,1.77116]
[1741951223501,1.4143,1903.8,1903.7,1.77116]
[1741951225211,0.00788001,1903.9,1903.7,0.7205]
[1741951225412,1.32468001,1903.9,1903.8,2.50231]
[1741951228003,1.32468001,1903.9,1903.8,3.19571]
[1741951230410,1.32468001,1903.9,1903.8,2.50231]
[1741951232411,2.37524001,1903.9,1903.7,1.05066]
[1741951232608,0.6581,1903.8,1903.7,2.37786]
[1741951232810,2.0243,1903.8,1903.7,2.37786]
[1741951233206,5.2321,1903.8,1903.6,0.00788001]
[1741951233513,1.05096,1903.2,1903.0,4.28086]
[1741951233712,2.0895,1903.1,1903.0,2.40026]
[1741951234113,2.7476,1903.1,1903.0,2.40026]
[1741951235117,1.3662,1903.1,1903.0,2.40026]
[1741951236718,3.2078,1903.2,1903.1,1.051]
[1741951236904,3.2078,1903.2,1903.1,3.7925]
[1741951238612,3.2078,1903.2,1903.0,0.02204]
[1741951238809,2.0968,1903.1,1903.0,1.07309]
[1741951239015,3.8589,1903.1,1903.0,0.02204]
[1741951240312,1.05123,1902.7,1902.6,1.05123]
[1741951240612,4.25902,1902.7,1902.6,1.05123]
[1741951240812,4.25902,1902.7,1902.3,2.6286]
[1741951240813,4.25902,1902.7,1902.5,1.4541]
[1741951241015,4.25902,1902.7,1902.3,3.3533]
[1741951241016,1.4293,1902.6,1902.4,1.05136]
[1741951241219,1.05144,1902.3,1902.0,4.8863]
[1741951241409,4.6371,1902.2,1902.1,1.05151]
[1741951242215,4.6371,1902.2,1902.0,1.05947001]
[1741951242413,4.6371,1902.2,1902.0,0.00788001]
[1741951242620,1.4293,1902.2,1902.1,1.05155]
[1741951242808,1.4293,1902.2,1902.1,2.43365]
[1741951243207,4.6371,1902.2,1902.1,2.43365]
[1741951243410,1.4293,1902.2,1902.1,2.43365]
[1741951244028,4.6371,1902.2,1902.1,2.43365]
[1741951244713,4.6371,1902.2,1902.1,1.05155]
[1741951244921,4.6371,1902.2,1902.0,1.05943001]
[1741951245323,4.6371,1902.2,1902.0,0.00788001]
[1741951245515,6.39073,1902.2,1902.0,1.05948001]
[1741951245823,6.39073,1902.2,1902.0,1.05947001]
[1741951247920,1.427,1902.1,1902.0,1.05947001]
[1741951248925,2.47855,1902.1,1902.0,1.05947001]
[1741951249119,1.427,1902.1,1902.0,1.05947001]
[1741951249423,3.2078,1902.2,1902.0,0.00788001]
[1741951249621,0.00788001,1902.3,1902.2,1.05149]
[1741951250115,3.2078,1903.0,1902.9,1.05108]
[1741951250417,3.2078,1903.0,1902.4,2.6284]
[1741951250418,1.05111,1902.9,1902.7,1.05118]
[1741951250623,3.2078,1902.8,1902.7,1.05118]
[1741951251219,3.2078,1902.8,1902.5,2.1113]
[1741951251624,1.4173,1902.7,1902.6,1.05127]
[1741951254321,0.00788001,1902.9,1902.8,1.05116]
[1741951255517,0.00788001,1902.9,1902.8,3.36716]
[1741951255722,0.00788001,1902.9,1902.8,6.57496]
[1741951256126,0.00788001,1902.9,1902.8,3.36716]
[1741951256626,3.2078,1903.3,1902.8,8.0238]
[1741951256925,3.2078,1903.3,1903.2,1.05094]
[1741951257228,1.3772,1903.7,1903.6,1.05072]
[1741951257427,1.3772,1903.7,1903.2,6.57374]
[1741951257428,1.3772,1903.7,1903.3,1.4234]
[1741951257628,1.3772,1903.7,1903.5,1.05072]
[1741951257932,3.2078,1903.6,1903.4,1.05078]
[1741951258230,1.3772,1903.5,1903.4,1.05078]
[1741951260221,0.00788001,1903.7,1903.6,1.05072]
[1741951260515,1.31838001,1903.7,1903.6,1.05072]
[1741951260721,1.31838001,1903.7,1903.5,1.05075]
[1741951261122,1.31838001,1903.7,1903.6,1.05072]
[1741951261620,1.31838001,1903.7,1903.3,0.00788001]
[1741951261830,3.2078,1903.6,1903.3,0.00788001]
[1741951262026,1.3105,1903.5,1903.4,1.05083]
[1741951262232,0.00788001,1903.7,1903.3,0.00788001]
[1741951262530,0.00788001,1903.7,1903.6,1.05072]
[1741951262736,1.38968001,1903.7,1903.3,0.00788001]
[1741951263227,1.38968001,1903.7,1903.6,1.05072]
[1741951263832,1.38968001,1903.7,1903.3,0.00788001]
[1741951264028,4.91682,1903.6,1903.4,1.05078]
[1741951264229,1.3818,1903.5,1903.4,1.05078]
[1741951265633,2.43258,1903.5,1903.3,1.05873001]
[1741951265835,2.43261,1903.5,1903.3,1.05876001]
[1741951266024,2.43261,1903.5,1903.3,0.00788001]
[1741951266025,2.0549,1903.5,1903.3,0.00788001]
[1741951266332,3.2078,1903.4,1903.3,0.00788001]
[1741951266633,4.6395,1903.4,1903.3,1.05877001]
[1741951267132,3.2078,1903.4,1903.3,1.05877001]
[1741951269233,3.2078,1903.6,1903.5,1.05078]
[1741951269933,3.2078,1903.6,1903.5,2.37978]
[1741951270130,4.6077,1903.6,1903.5,2.37978]
[1741951270433,3.2078,1903.6,1903.5,2.37978]
[1741951270636,4.6077,1903.6,1903.5,2.37978]
[1741951270839,3.2078,1903.6,1903.5,2.37978]
[1741951271935,0.00788001,1903.7,1903.6,1.05072]
[1741951272336,1.40108001,1903.7,1903.6,1.05072]
[1741951273538,1.40108001,1903.7,1903.6,2.49662]
[1741951276542,1.05079,1903.5,1903.4,1.0508]
[1741951276740,3.2078,1903.5,1903.4,1.0508]
[1741951277038,4.25858,1903.5,1903.4,1.0508]
[1741951277841,3.2078,1903.5,1903.4,1.0508]
[1741951278037,5.65158,1903.5,1903.4,1.0508]
[1741951278937,4.6008,1903.5,1903.3,1.34178001]
[1741951279136,2.41233,1903.4,1903.3,0.00788001]
[1741951279332,2.41233,1903.4,1903.0,1.05104]
[1741951279535,4.25882,1903.1,1902.8,1.3256]
[1741951279738,3.2078,1903.1,1903.0,1.05105]
[1741951280138,3.2078,1903.2,1903.1,1.051]
[1741951280336,5.5218,1903.5,1903.1,2.682]
[1741951280536,1.05084,1903.4,1903.3,1.05086]
[1741951281243,5.5218,1903.5,1903.2,1.3256]
[1741951281436,3.2078,1903.3,1903.2,1.05094]
[1741951282739,1.05094,1903.2,1903.1,1.3859]
[1741951283036,4.25871,1903.3,1903.2,1.05094]
[1741951283246,4.25871,1903.3,1903.0,0.00788001]
[1741951283449,5.71065675,1903.5,1903.0,2.44483001]
[1741951283450,3.2078,1903.1,1903.0,2.44483001]
[1741951283947,1.05098,1903.2,1903.0,1.39378001]
[1741951284141,1.05098,1903.2,1903.1,2.4323]
[1741951284336,3.2078,1903.3,1903.1,1.3813]
[1741951284646,4.25872,1903.3,1903.2,1.3813]
[1741951285750,1.05094,1903.2,1903.1,1.05095]
[1741951285948,3.2078,1903.3,1903.0,2.44020001]
[1741951285949,1.051,1903.1,1903.0,2.44020001]
[1741951286152,3.2078,1903.1,1903.0,2.44023001]
[1741951286740,4.2588,1903.1,1903.0,2.44023001]
[1741951287047,4.2588,1903.1,1903.0,0.00788001]
[1741951287247,4.2588,1903.1,1903.0,1.05893001]
[1741951287748,4.2588,1903.1,1903.0,0.00788001]
[1741951287943,4.2588,1903.1,1903.0,1.05893001]
[1741951288256,4.2588,1903.1,1903.0,0.00788001]
[1741951289550,4.2588,1903.1,1903.0,1.44218001]
[1741951289848,4.2588,1903.1,1903.0,2.49323001]
[1741951290941,3.2078,1903.1,1903.0,2.49323001]
[1741951292053,4.25872,1903.3,1903.2,1.05094]
[1741951292649,3.2078,1903.3,1903.2,1.05094]
[1741951292948,3.2078,1903.3,1903.2,2.43114]
[1741951294349,0.00788001,1903.7,1903.6,1.05072]
[1741951294350,3.21568001,1903.7,1903.6,1.05072]
[1741951294943,3.21568001,1903.7,1903.6,2.44512]
[1741951295342,0.00788001,1903.7,1903.6,2.44512]
[1741951295547,3.21568001,1903.7,1903.6,1.3944]
[1741951295746,4.26634001,1903.7,1903.6,1.3944]
[1741951295942,1.05072,1903.6,1903.5,1.3292]
[1741951296259,5.84236001,1903.7,1903.2,1.4146]
[1741951296447,1.05083,1903.4,1903.3,1.3278]
[1741951296643,1.05083,1903.4,1903.0,0.00788001]
[1741951296644,3.2078,1903.4,1903.0,0.00788001]
[1741951296845,1.051,1903.1,1903.0,1.05892001]
[1741951297042,3.2078,1903.2,1903.0,0.00788001]
[1741951297349,3.2078,1903.2,1903.1,1.05095]
[1741951297548,3.2078,1903.2,1903.1,2.37875]
[1741951297549,4.25874,1903.2,1903.1,2.37875]
[1741951297945,3.2078,1903.2,1903.1,2.37875]
[1741951298649,4.25874,1903.2,1903.1,2.37875]
[1741951298850,5.68704,1903.2,1903.1,2.37875]
[1741951299051,4.6361,1903.2,1903.1,2.37875]
[1741951299448,1.051,1903.1,1903.0,1.05891001]
[1741951299650,1.4327,1903.1,1903.0,1.05891001]
[1741951299848,2.4837,1903.1,1903.0,1.05891001]
[1741951300050,1.4327,1903.1,1903.0,1.05891001]
[1741951301550,2.4837,1903.1,1903.0,1.05891001]
[1741951302859,1.4327,1903.1,1903.0,1.05891001]
[1741951303552,4.6405,1903.1,1903.0,1.05891001]
[1741951303950,5.6915,1903.1,1903.0,1.05891001]
[1741951305455,6.3569,1903.1,1903.0,1.05893001]
[1741951305651,6.3569,1903.1,1903.0,0.00788001]
[1741951306162,5.3059,1903.1,1903.0,0.00788001]
[1741951306455,5.3059,1903.1,1903.0,1.05893001]
[1741951306848,5.3059,1903.1,1903.0,1.76143001]
[1741951307149,2.0981,1903.1,1903.0,1.76143001]
[1741951307355,1.05096,1903.2,1903.1,1.051]
[1741951307658,2.46146,1903.2,1903.1,1.051]
[1741951307858,2.46146,1903.2,1903.1,2.3637]
[1741951308060,2.46144,1903.2,1903.1,2.3637]
[1741951308459,1.4105,1903.2,1903.1,2.3637]
[1741951308961,3.2078,1903.3,1903.2,1.05094]
[1741951309149,3.2078,1903.3,1903.2,3.18984]
[1741951309955,3.2078,1903.5,1903.4,1.05083]
[1741951310155,1.42768001,1903.7,1903.6,1.05072]
[1741951310761,1.42768001,1903.7,1903.6,2.45492]
[1741951311365,0.00788001,1903.7,1903.6,2.45492]
[1741951313471,3.21568001,1903.7,1903.6,2.45492]
[1741951313662,5.71719001,1903.7,1903.5,1.427]
[1741951313863,3.19972,1903.6,1903.5,2.47775]
[1741951314160,3.19972,1903.6,1903.4,0.7082]
[1741951314161,1.05083,1903.4,1903.2,1.05091]
[1741951314366,4.25863,1903.4,1903.3,2.49889]
[1741951314755,3.2078,1903.4,1903.3,2.49889]
[1741951314956,4.25863,1903.4,1903.3,2.49889]
[1741951315362,3.2078,1903.4,1903.3,2.49889]
[1741951315558,4.25863,1903.4,1903.3,1.448]
[1741951315863,4.25868,1903.4,1903.2,1.0509]
[1741951316063,1.05097,1903.2,1903.1,1.05098]
[1741951316257,1.051,1903.1,1903.0,1.45588001]
[1741951316463,0.7178,1903.1,1903.0,2.50693001]
[1741951319363,3.2078,1903.2,1903.1,1.051]
[1741951319566,2.314,1903.4,1903.3,1.05089]
[1741951319865,3.913,1903.5,1903.4,1.05083]
[1741951320161,3.2078,1903.5,1903.4,1.05083]
[1741951320363,0.00788001,1903.7,1903.3,4.00242]
[1741951320563,0.00788001,1903.7,1903.6,1.05072]
[1741951320766,3.21568001,1903.7,1903.6,1.05072]
[1741951321558,3.21568001,1903.7,1903.6,2.42592]
[1741951324863,3.21568001,1903.7,1903.6,3.14182]
[1741951326168,0.00788001,1903.7,1903.6,3.14182]
[1741951329767,1.41298001,1903.7,1903.6,3.14182]
[1741951330271,0.00788001,1903.7,1903.6,3.14182]
[1741951347785,3.8879,1904.0,1903.7,2.62657]
[1741951348075,1.9929,1904.0,1903.9,1.05055]
[1741951348484,1.3128,1904.0,1903.9,2.39845]
[1741951348879,7.152,1904.8,1904.1,2.62604]
[1741951348880,6.29046833,1904.6,1904.1,2.62604]
[1741951349076,2.0317,1904.5,1904.4,1.05027]
[1741951351186,2.0317,1904.5,1904.3,0.00788001]
[1741951351376,5.64248,1904.4,1904.3,1.05818001]
[1741951351777,4.5922,1904.4,1904.3,1.05818001]
[1741951351973,5.64248,1904.4,1904.3,1.05818001]
[1741951352178,4.5922,1904.4,1904.3,1.05818001]
[1741951352386,5.64248,1904.4,1904.3,1.05818001]
[1741951352980,5.64248,1904.4,1904.3,1.05821001]
[1741951353586,5.64248,1904.4,1904.3,0.00788001]
[1741951353780,1.05041,1904.3,1904.2,1.05038]
[1741951353982,1.05042,1904.2,1904.1,1.05039]
[1741951354174,1.05042,1904.2,1903.4,0.81436081]
[1741951354175,3.8789,1904.2,1903.6,2.62669]
[1741951354381,3.2078,1904.0,1903.9,1.05051]
[1741951354784,3.2078,1904.0,1903.8,1.4156]
[1741951354984,1.0506,1903.9,1903.8,1.05844001]
[1741951356885,1.7112,1903.9,1903.8,1.05844001]
[1741951357188,1.71115,1903.9,1903.8,1.05844001]
[1741951359791,1.71115,1903.9,1903.8,0.00788001]
[1741951359991,1.71115,1903.9,1903.8,1.05849001]
[1741951361793,1.71115,1903.9,1903.8,2.50429001]
[1741951362796,0.6606,1903.9,1903.8,2.50429001]
[1741951363092,1.71115,1903.9,1903.8,2.50429001]
[1741951364787,1.71115,1903.9,1903.8,0.00788001]
[1741951364991,1.71115,1903.9,1903.8,1.05849001]
[1741951366199,1.71115,1903.9,1903.8,0.00788001]
[1741951367492,0.6606,1903.9,1903.6,1.05069]
[1741951367697,1.05066,1903.7,1903.6,1.05069]
[1741951368999,4.95867,1903.8,1903.7,1.05066]
[1741951370796,3.2078,1903.8,1903.7,1.05066]
[1741951371193,3.2078,1903.8,1903.7,1.70986]
[1741951371595,1.3224,1903.9,1903.7,0.6592]
[1741951371800,1.3224,1903.9,1903.8,2.39291]
[1741951373189,3.2078,1904.0,1903.9,1.05055]
[1741951373393,3.2078,1904.0,1903.9,2.37715]
[1741951373805,1.3265,1904.1,1904.0,1.0505]
[1741951374001,1.3265,1904.1,1904.0,3.0731]
[1741951374495,2.37694,1904.1,1904.0,3.0731]
[1741951375094,1.3265,1904.1,1904.0,3.0731]
[1741951375295,2.37694,1904.1,1904.0,3.0731]
[1741951375496,1.3265,1904.1,1904.0,3.0731]
[1741951376106,2.37694,1904.1,1904.0,3.0731]
[1741951381011,2.37694,1904.1,1904.0,2.3771]
[1741951387116,5.02805295,1904.2,1904.1,1.05044]
[1741951387311,4.5877,1904.2,1904.1,3.09624]
[1741951387501,5.63809,1904.2,1904.1,3.09624]
[1741951388007,5.63809,1904.2,1904.1,2.40514]
[1741951396616,4.5877,1904.2,1904.1,2.40514]
[1741951396823,3.2078,1904.2,1904.1,2.40514]
[1741951397414,4.5621,1904.2,1904.1,2.40514]
[1741951398321,3.2078,1904.2,1904.1,2.40514]
[1741951399129,4.5621,1904.2,1904.1,2.40514]
[1741951399816,5.61249,1904.2,1904.1,1.3547]
[1741951400023,5.2499,1904.2,1904.1,2.40514]
[1741951400222,6.30029,1904.2,1904.1,2.40514]
[1741951400418,3.2078,1904.2,1904.1,2.40514]
[1741951401617,4.6444,1904.2,1904.1,2.40514]
[1741951402316,5.69479,1904.2,1904.1,2.40514]
[1741951402518,6.41889,1904.2,1904.1,2.40514]
[1741951402921,6.41889,1904.2,1904.1,1.3547]
[1741951403129,1.05055,1903.9,1903.8,1.75567]
[1741951403330,7.99448,1904.2,1903.7,6.65691]
[1741951403331,3.2078,1904.0,1903.7,6.65691]
[1741951403633,1.77465,1903.9,1903.8,0.7175463]
[1741951404022,1.05064,1903.8,1903.7,1.05064]
[1741951404326,4.25844,1903.8,1903.7,1.05064]
[1741951404528,5.60374,1903.8,1903.7,1.05064]
[1741951405328,1.3453,1903.8,1903.7,1.05064]
[1741951405529,1.3453,1903.8,1903.7,1.77344]
[1741951405726,4.5531,1903.8,1903.7,1.77344]
[1741951406024,1.3453,1903.8,1903.7,1.77344]
[1741951406231,2.39591,1903.8,1903.7,1.77344]
[1741951406425,5.60371,1903.8,1903.7,1.77344]
[1741951406626,5.60371,1903.8,1903.7,0.7228]
[1741951406826,4.5531,1903.8,1903.7,1.77346]
[1741951407029,5.60371,1903.8,1903.7,3.10576]
[1741951409233,3.2078,1903.8,1903.7,3.10576]
[1741951411734,1.4248,1903.9,1903.8,1.05061]
[1741951411928,1.4248,1903.9,1903.8,2.45831]
[1741951414237,1.05062,1903.8,1903.7,1.05062]
[1741951414438,1.05062,1903.8,1903.7,2.45832]
[1741951414638,4.25842,1903.8,1903.7,2.45832]
[1741951415843,3.2078,1903.8,1903.7,2.45832]
[1741951416542,4.5417,1903.8,1903.7,2.45832]
[1741951419140,1.3339,1903.8,1903.7,2.45832]
[1741951420541,4.5417,1903.8,1903.7,2.45832]
[1741951422244,5.59231,1903.8,1903.7,2.45832]
[1741951422445,4.5417,1903.8,1903.7,2.45832]
[1741951422646,5.59231,1903.8,1903.7,2.45832]
[1741951423349,4.5417,1903.8,1903.7,2.45832]
[1741951423847,1.3339,1903.8,1903.7,2.45832]
[1741951424438,4.5417,1903.8,1903.7,2.45832]
[1741951424745,5.59231,1903.8,1903.7,2.45832]
[1741951425544,4.5417,1903.8,1903.7,2.45832]
[1741951425745,5.59231,1903.8,1903.7,2.45832]
[1741951425945,4.5417,1903.8,1903.7,2.45832]
[1741951427244,5.59231,1903.8,1903.7,2.45832]
[1741951427647,1.05072,1903.6,1903.5,1.05865001]
[1741951427857,4.25852,1903.6,1903.5,2.36846001]
[1741951428243,5.63052,1903.6,1903.5,2.36846001]
[1741951432243,3.2078,1903.6,1903.5,2.36846001]
[1741951434247,1.3131,1903.7,1903.6,1.05072]
[1741951434549,1.3131,1903.7,1903.6,3.06602]
[1741951434752,1.3131,1903.8,1903.7,1.05066]
[1741951434954,1.3131,1903.8,1903.7,2.38806]
[1741951437652,2.36371,1903.8,1903.7,1.3374]
[1741951437854,1.05069,1903.7,1903.6,1.05069]
[1741951438149,5.3601,1903.7,1903.6,2.36359]
[1741951438754,5.3601,1903.7,1903.6,1.3129]
[1741951438950,1.05072,1903.6,1903.5,1.05862001]
[1741951439154,3.22132,1903.6,1903.5,2.42712001]
[1741951442857,2.1706,1903.6,1903.5,2.42712001]
[1741951444249,4.97769,1903.7,1903.5,2.42712001]
[1741951444250,3.2078,1903.7,1903.6,1.05072]
[1741951444556,4.6118,1903.7,1903.6,2.42832]
[1741951444755,8.268,1903.9,1903.8,1.05061]
[1741951444756,11.4758,1903.9,1903.8,1.05061]
[1741951444967,9.93452996,1903.9,1903.8,1.05061]
[1741951445151,9.1638,1903.9,1903.8,1.05061]
[1741951445356,10.21435,1903.9,1903.8,1.05061]
[1741951445756,10.98510217,1903.9,1903.8,1.05061]
[1741951446262,12.42600217,1903.9,1903.8,2.41611]
[1741951446963,10.6047,1903.9,1903.8,2.41611]
[1741951447167,9.1638,1903.9,1903.8,2.41611]
[1741951448571,3.2078,1903.9,1903.8,2.41611]
[1741951449466,5.64605,1904.1,1903.8,1.3655]
[1741951449663,5.64605,1904.1,1904.0,1.0505]
[1741951450365,3.2078,1904.1,1904.0,1.0505]
[1741951450551,4.5956,1904.1,1904.0,1.0505]
[1741951451162,4.5956,1904.1,1904.0,1.7105]
[1741951451356,4.5956,1904.1,1904.0,2.4035]
[1741951451555,1.3878,1904.1,1904.0,2.4035]
[1741951452158,1.3878,1904.1,1903.9,1.3977]
[1741951452467,5.64608,1904.1,1903.9,3.80121]
[1741951452856,4.25828,1904.1,1904.0,1.3375]
[1741951453254,3.2078,1904.1,1904.0,2.388]
[1741951463374,4.25824,1904.1,1904.0,2.388]
[1741951463872,4.25824,1904.1,1903.9,1.353]
[1741951463873,1.0505,1904.0,1903.9,1.7435]
[1741951464079,0.6838,1904.0,1903.9,1.05055]
[1741951464577,0.6838,1904.0,1903.9,1.72785]
[1741951465770,0.6838,1904.0,1903.9,1.05055]
[1741951465970,1.7343,1904.0,1903.9,1.05055]
[1741951466177,0.6838,1904.0,1903.9,1.05055]
[1741951467776,3.2078,1904.1,1904.0,1.0505]
[1741951468268,3.2078,1904.1,1903.9,1.3105]
[1741951468467,4.25828,1904.1,1904.0,1.0505]
[1741951468875,5.60648,1904.1,1904.0,1.0505]
[1741951469267,4.556,1904.1,1903.9,1.3105]
[1741951469473,2.3987,1904.0,1903.9,2.36102]
[1741951470572,1.3482,1904.0,1903.9,2.36102]
[1741951473083,3.2078,1904.1,1904.0,1.0505]
[1741951473382,4.5348,1904.1,1904.0,3.866]
[1741951474275,3.2078,1904.1,1904.0,3.866]
[1741951474475,0.6944,1904.2,1904.1,1.05044]
[1741951474674,0.6944,1904.2,1904.1,2.50454]
[1741951474882,1.327,1904.2,1904.1,2.50454]
[1741951481084,3.2078,1904.3,1904.2,1.05039]
[1741951481285,4.5214,1904.3,1904.2,2.37679]
[1741951483274,0.77804418,1904.6,1904.2,1.3264]
[1741951483476,0.70308001,1904.6,1904.5,1.05022]
[1741951484386,0.00788001,1904.6,1904.5,1.05022]
[1741951484887,1.38708001,1904.6,1904.5,1.05022]
[1741951486782,1.38708001,1904.6,1904.4,1.3407]
[1741951487088,1.38708001,1904.6,1904.5,1.05022]
[1741951487279,2.43725001,1904.6,1904.5,1.05022]
[1741951488081,4.59488001,1904.6,1904.0,8.0941]
[1741951488383,1.3958,1904.5,1904.4,1.05028]
[1741951489490,1.3958,1904.5,1904.4,1.76378]
[1741951490692,1.3958,1904.5,1904.4,2.47498]
[1741951493291,1.3958,1904.5,1904.4,1.76148]
[1741951495589,1.3958,1904.5,1904.0,4.8863]
[1741951495792,1.434,1904.4,1904.2,1.3934]
[1741951496095,2.4843,1904.4,1904.3,1.05033]
[1741951496389,1.05033,1904.3,1904.2,1.3934]
[1741951496595,4.25813,1904.3,1904.2,2.44379]
[1741951497294,4.25813,1904.3,1904.2,1.05039]
[1741951498596,3.2078,1904.3,1904.2,1.05039]
[1741951500898,1.434,1904.4,1904.1,1.3794]
[1741951501105,1.434,1904.4,1904.3,1.05033]
[1741951501397,0.7222,1904.4,1904.3,1.05033]
[1741951502299,0.7222,1904.4,1904.3,1.72313]
[1741951503194,3.2078,1904.5,1904.4,1.05028]
[1741951503390,3.2078,1904.5,1904.4,3.13818]
[1741951505096,0.00788001,1904.6,1904.5,1.05022]
[1741951505301,0.00788001,1904.6,1904.5,2.43142]
[1741951506498,1.05805001,1904.6,1904.5,2.43142]
[1741951507710,0.00788001,1904.6,1904.5,2.43142]
[1741951508508,1.05805001,1904.6,1904.5,2.43142]
[1741951508895,2.45405001,1904.6,1904.5,2.43142]
[1741951509102,1.05025,1904.5,1904.4,1.05024]
[1741951509300,1.05025,1904.5,1904.4,2.42024]
[1741951509301,2.0515,1904.5,1904.4,2.42024]
[1741951510103,1.3399,1904.5,1904.4,2.42024]
[1741951510298,0.00788001,1904.6,1904.5,1.05022]
[1741951510503,1.34778001,1904.6,1904.5,3.13902]
[1741951511116,0.00788001,1904.6,1904.5,3.13902]
[1741951512000,1.3399,1904.9,1904.8,1.05006]
[1741951512204,1.04991,1905.1,1905.0,1.04995]
[1741951512411,4.25771,1905.1,1904.7,4.03313]
[1741951512619,4.25771,1905.1,1904.9,1.04995]
[1741951512997,1.05003,1904.9,1904.8,1.05792001]
[1741951513211,4.25783,1904.9,1904.8,0.00788001]
[1741951513903,5.60593,1904.9,1904.8,0.00788001]
[1741951514204,6.97343,1904.9,1904.8,0.00788001]
[1741951514409,6.97343,1904.9,1904.8,1.05794001]
[1741951514601,6.97343,1904.9,1904.8,2.46584001]
[1741951515311,6.97343,1904.9,1904.8,0.00788001]
[1741951515905,6.97343,1904.9,1904.8,1.05794001]
[1741951518911,5.9234,1904.9,1904.8,1.05794001]
[1741951519113,6.9734,1904.9,1904.8,1.05794001]
[1741951520017,6.9734,1904.9,1904.8,0.00788001]
[1741951520312,1.05015,1904.7,1904.6,1.05012]
[1741951520608,1.05022,1904.6,1904.5,1.05019]
[1741951520909,3.92322,1904.6,1904.5,2.48229]
[1741951521307,3.92322,1904.6,1904.5,1.4321]
[1741951521710,3.92322,1904.6,1904.5,2.48232]
[1741951523817,2.48802,1904.6,1904.5,2.48232]
[1741951524611,2.62489,1905.0,1904.5,4.6399]
[1741951524612,3.2078,1905.0,1904.5,4.6399]
[1741951524807,2.4917,1904.9,1904.8,1.05006]
[1741951525605,1.4417,1904.9,1904.8,2.49946]
[1741951525815,2.4917,1904.9,1904.8,2.49946]
[1741951526912,2.4917,1904.9,1904.8,1.4494]
[1741951527317,2.4917,1904.9,1904.8,2.49946]
[1741951530723,1.4417,1904.9,1904.6,0.6651]
[1741951530922,6.30621,1904.8,1904.7,2.42207]
[1741951533113,6.30616,1904.8,1904.7,2.42207]
[1741951535618,4.5765,1904.8,1904.7,2.42207]
[1741951536726,3.2078,1904.8,1904.7,2.42207]
[1741951538634,5.66489,1905.0,1904.9,1.05]
[1741951539427,5.66489,1905.0,1904.9,3.0845]
[1741951540325,3.2078,1905.0,1904.9,3.0845]